[Event "Cracovia Festival-A 2023"]
[Site "Krakow"]
[Date "2024.01.02"]
[Round "7.46"]
[White "Zalega, Maciej"]
[Black "Katsanis, Vasileios Dim"]
[Result "1/2-1/2"]
[ECO "B15"]
[WhiteElo "2113"]
[BlackElo "2133"]
[Annotator "RC"]
[PlyCount "116"]
[EventDate "2023.12.24"]
[EventType "swiss"]
[EventCountry "POL"]
[SourceTitle "playchess.com"]
[Source "ChessBase"]
[SourceQuality "1"]
[TimeControl "40/5400+30:1800+30"]

1. e4 {[%emt 0:00:15]} c6 {[%emt 0:00:02]} 2. d4 {[%emt 0:00:03]} d5 {[%emt 0:00:03]} 3. Nc3 {[%emt 0:00:03]} dxe4 {[%emt 0:00:03]} 4. Nxe4 {[%emt 0:00:03]} Nf6 {[%emt 0:00:03]} 5. Nxf6+ {[%emt 0:00:04]} exf6 {[%emt 0:00:02]} 6. c3 {[%emt 0:00:04]} Bd6 {[%emt 0:00:03]} 7. Bd3 {[%emt 0:00:05]} O-O {[%emt 0:00:03]} 8. Qc2 {[%emt 0:00:04]} Re8+ {[%emt 0:00:03]} 9. Ne2 {[%emt 0:00:04]} h5 {[%emt 0:00:02]} 10. O-O {[%emt 0:00:06]} h4 {[%emt 0:00:02]} 11. Nf4 {[%emt 0:00:07]} Qc7 {[%emt 0:00:08]} 12. g3 {[%emt 0:00:04]} Nd7 {[%emt 0:00:08]} 13. Qd1 {[%emt 0:00:03]} Nf8 {[%emt 0:00:37]} 14. Qh5 {[%emt 0:00:07]} Qd7 {[%emt 0:00:54]} 15. Bd2 {[%emt 0:00:07]} g5 {[%emt 0:05:43]} 16. Ng2 {[%emt 0:21:35]} Qh3 {[%emt 0:04:40]} 17. Qf3 {[%emt 0:00:06]} Bg4 {[%emt 0:25:14]} 18. Qxf6 {[%emt 0:03:23]} Be7 {[%emt 0:00:33]} 19. Qh6 {[%emt 0:03:45]} hxg3 {[%emt 0:03:34]} 20. Qxh3 {[%emt 0:00:31]} gxf2+ {[%emt 0:00:17]} 21. Rxf2 {[%emt 0:00:29]} Bxh3 {[%emt 0:00:02]} 22. Ne3 {[%emt 0:00:50]} f6 {[%emt 0:11:42]} 23. Nf5 {[%emt 0:03:34]} Bxf5 {[%emt 0:00:24]} 24. Bxf5 {[%emt 0:00:01]} Kg7 {[%emt 0:01:04]} 25. Re1 {[%emt 0:05:53]} Bd6 {[%emt 0:01:52]} 26. Ref1 {[%emt 0:00:37]} Ne6 {[%emt 0:00:29]} 27. Rg2 {[%emt 0:00:42]} Kh8 {[%emt 0:04:38]} 28. Bxe6 {[%emt 0:07:29]} Rxe6 {[%emt 0:00:05]} 29. h4 {[%emt 0:00:08]} gxh4 {[%emt 0:03:54]} 30. Rf5 {[%emt 0:00:06]} Re7 {[%emt 0:00:25]} 31. Bf4 {[%emt 0:09:35]} Bxf4 {[%emt 0:01:38]} 32. Rxf4 {[%emt 0:00:02]} Rg8 {[%emt 0:08:38]} 33. Rxh4+ {[%emt 0:17:33]} Rh7 {[%emt 0:00:02]} 34. Re4 {[%emt 0:00:09]} Rxg2+ {[%emt 0:00:31]} 35. Kxg2 {[%emt 0:00:03]} Kg8 {[%emt 0:01:21]} 36. Kg3 {[%emt 0:04:32]} Kf7 {[%emt 0:01:10]} 37. Re2 {[%emt 0:01:13]} f5 {[%emt 0:04:51]} 38. c4 {[%emt 0:00:23]} Rh1 {[%emt 0:01:43]} 39. Rd2 {[%emt 0:01:22]} Ke6 {[%emt 0:03:08]} 40. d5+ {[%emt 0:00:00]} cxd5 {[%emt 0:00:00]} 41. cxd5+ {[%emt 0:05:18]} Kd6 {[%emt 0:00:32]} 42. Rf2 {[%emt 0:03:02]} Ke5 {[%emt 0:02:10]} 43. Rd2 {[%emt 0:02:10]} Rh6 {[%emt 0:00:43]} 44. b3 {[%emt 0:03:01]} Rd6 {[%emt 0:03:39]} 45. Re2+ {[%emt 0:00:04]} Kf6 {[%emt 0:02:18]} 46. Rd2 {[%emt 0:00:11]} Ke5 {[%emt 0:00:29]} 47. Re2+ {[%emt 0:00:04]} Kxd5 {[%emt 0:00:02]} 48. Kf4 {[%emt 0:00:05]} Rf6 {[%emt 0:00:53]} 49. Re7 {[%emt 0:00:15]} Kc6 {[%emt 0:00:57]} 50. Ke5 {[%emt 0:14:11]} Rd6 {[%emt 0:03:59]} 51. Kxf5 {[%emt 0:00:46]} Rd2 {[%emt 0:00:24]} 52. a4 {[%emt 0:00:21]} a5 {[%emt 0:02:10]} 53. Kf4 {[%emt 0:05:56]} Rd4+ {[%emt 0:07:41]} 54. Kf3 {[%emt 0:00:29]} Rh4 {[%emt 0:03:41]} 55. Ke2 {[%emt 0:01:20]} Rd4 {[%emt 0:03:31]} 56. Re5 {[%emt 0:02:15]} b6 {[%emt 0:00:16]} 57. Rb5 {[%emt 0:01:09]} Rh4 {[%emt 0:00:14]} 58. Kd2 {[%emt 0:00:10]} Rh3 {[%emt 0:00:17]} 1/2-1/2

[Event "Cracovia Festival-A 2023"]
[Site "Krakow"]
[Date "2024.01.02"]
[Round "7.47"]
[White "Kaim, Piotr"]
[Black "Biesiadecki, Adam"]
[Result "1-0"]
[ECO "A05"]
[WhiteElo "2127"]
[BlackElo "2102"]
[Annotator "NA RC"]
[PlyCount "80"]
[EventDate "2023.12.24"]
[EventType "swiss"]
[EventCountry "POL"]
[SourceTitle "playchess.com"]
[Source "ChessBase"]
[SourceQuality "1"]
[TimeControl "40/5400+30:1800+30"]

1. Nf3 {[%emt 0:00:18]} Nf6 {[%emt 0:00:06]} 2. c4 {[%emt 0:00:19]} c5 {[%emt 0:00:19]} 3. Nc3 {[%emt 0:02:18]} g6 {[%emt 0:00:21]} 4. d4 {[%emt 0:00:33]} cxd4 {[%emt 0:00:17]} 5. Nxd4 {[%emt 0:00:04]} Bg7 {[%emt 0:01:47]} 6. e4 {[%emt 0:01:20]} d6 {[%emt 0:00:29]} 7. Be2 {[%emt 0:01:28]} O-O {[%emt 0:00:10]} 8. Be3 {[%emt 0:00:13]} Nc6 {[%emt 0:00:12]} 9. f3 {[%emt 0:02:41]} Nxd4 {[%emt 0:02:42]} 10. Bxd4 {[%emt 0:00:07]} Be6 {[%emt 0:00:07]} 11. Qd2 {[%emt 0:01:06]} Qa5 {[%emt 0:01:08]} 12. O-O {[%emt 0:10:24]} Rfc8 {[%emt 0:00:59]} 13. b3 {[%emt 0:02:05]} a6 {[%emt 0:01:52]} 14. Rab1 {[%emt 0:17:19]} Nd7 {[%emt 0:08:28]} 15. Bxg7 {[%emt 0:01:38]} Kxg7 {[%emt 0:00:06]} 16. f4 {[%emt 0:06:46]} f6 {[%emt 0:01:27]} 17. Kh1 {[%emt 0:02:40]} b5 {[%emt 0:01:43]} 18. f5 {[%emt 0:02:07]} Bf7 {[%emt 0:02:08]} 19. fxg6 {[%emt 0:00:21]} hxg6 {[%emt 0:01:05]} 20. Bg4 {[%emt 0:00:37]} Rc7 {[%emt 0:07:23]} 21. b4 {[%emt 0:10:40]} Qb6 {[%emt 0:00:56]} 22. Bxd7 {[%emt 0:00:56]} Rxd7 {[%emt 0:00:07]} 23. cxb5 {[%emt 0:00:46]} axb5 {[%emt 0:00:16]} 24. e5 {[%emt 0:00:51]} f5 {[%emt 0:09:25]} 25. Rbe1 {[%emt 0:03:58]} Bc4 {[%emt 0:02:55]} 26. e6 {[%emt 0:10:15]} Rdd8 {[%emt 0:07:55]} 27. Rxf5 {[%emt 0:05:58]} Rf8 {[%emt 0:02:39]} 28. Rf7+ {[%emt 0:03:13]} Rxf7 {[%emt 0:02:16]} 29. exf7 {[%emt 0:00:02]} e5 {[%emt 0:10:56]} 30. Ne4 {[%emt 0:02:55]} Rxa2 {[%emt 0:01:52]} 31. Qh6+ {[%emt 0:02:58]} Kxf7 {[%emt 0:00:08]} 32. Qh7+ {[%emt 0:01:12]} Kf8 {[%emt 0:03:08]} 33. Qxg6 {[%emt 0:03:42]} Ra7 {[%emt 0:00:59]} 34. Nxd6 {[%emt 0:01:02]} Qf2 {[%emt 0:01:36]} 35. Qe8+ {[%emt 0:00:20]} Kg7 {[%emt 0:00:02]} 36. Qxe5+ {[%emt 0:00:08]} Kg8 {[%emt 0:00:37]} 37. h3 {[%emt 0:02:51]} Bf1 {[%emt 0:01:35]} 38. Qg5+ {[%emt 0:01:05]} Kh7 {[%emt 0:01:09]} 39. Qh5+ {[%emt 0:00:52]} Kg7 {[%emt 0:00:16]} 40. Qg5+ {[%emt 0:00:00]} Kh7 {[%emt 0:00:00]} 1-0

[Event "Cracovia Festival-A 2023"]
[Site "Krakow"]
[Date "2024.01.02"]
[Round "7.48"]
[White "Kovalevsky, Stanislav"]
[Black "Krzyzanowski, Patryk"]
[Result "1-0"]
[ECO "B22"]
[WhiteElo "2163"]
[BlackElo "2102"]
[Annotator "RC"]
[PlyCount "57"]
[EventDate "2023.12.24"]
[EventType "swiss"]
[EventCountry "POL"]
[SourceTitle "playchess.com"]
[Source "ChessBase"]
[SourceQuality "1"]
[TimeControl "40/5400+30:1800+30"]

1. e4 {[%emt 0:00:02]} c5 {[%emt 0:00:07]} 2. c3 {[%emt 0:00:03]} g6 {[%emt 0:00:08]} 3. d4 {[%emt 0:00:12]} cxd4 {[%emt 0:00:07]} 4. cxd4 {[%emt 0:00:01]} d5 {[%emt 0:00:10]} 5. e5 {[%emt 0:00:08]} Bg7 {[%emt 0:00:07]} 6. Nc3 {[%emt 0:01:51]} Nc6 {[%emt 0:07:25]} 7. Bb5 {[%emt 0:01:02]} Bd7 {[%emt 0:00:50]} 8. Nf3 {[%emt 0:17:00]} Rc8 {[%emt 0:11:25]} 9. O-O {[%emt 0:15:55]} Bg4 {[%emt 0:01:52]} 10. h3 {[%emt 0:04:06]} Bxf3 {[%emt 0:09:13]} 11. Qxf3 {[%emt 0:00:04]} e6 {[%emt 0:00:07]} 12. Bxc6+ {[%emt 0:00:14]} bxc6 {[%emt 0:05:43]} 13. Na4 {[%emt 0:02:26]} Qh4 {[%emt 0:03:55]} 14. Bf4 {[%emt 0:14:52]} g5 {[%emt 0:06:36]} 15. g3 {[%emt 0:02:09]} Qxh3 {[%emt 0:01:21]} 16. Bxg5 {[%emt 0:00:06]} h5 {[%emt 0:00:17]} 17. Nc5 {[%emt 0:16:52]} h4 {[%emt 0:16:02]} 18. Nb7 {[%emt 0:01:41]} Bf8 {[%emt 0:00:22]} 19. Bf4 {[%emt 0:07:15]} hxg3 {[%emt 0:01:51]} 20. Bxg3 {[%emt 0:00:02]} Nh6 {[%emt 0:04:09]} 21. Rfd1 {[%emt 0:01:27]} Nf5 {[%emt 0:02:42]} 22. Qg2 {[%emt 0:00:12]} Qh5 {[%emt 0:04:27]} 23. Rd3 {[%emt 0:01:58]} Qe2 {[%emt 0:01:44]} 24. Rad1 {[%emt 0:00:24]} Qxb2 {[%emt 0:00:49]} 25. Nd6+ {[%emt 0:00:04]} Bxd6 {[%emt 0:00:26]} 26. exd6 {[%emt 0:00:05]} Kd7 {[%emt 0:02:21]} 27. Rb3 {[%emt 0:01:28]} Qe2 {[%emt 0:04:56]} 28. Rb7+ {[%emt 0:00:33]} Kd8 {[%emt 0:00:09]} 29. Bh4+ {[%emt 0:00:10]} 1-0

[Event "Cracovia Festival-A 2023"]
[Site "Krakow"]
[Date "2024.01.02"]
[Round "7.49"]
[White "Krainski, Aleksander"]
[Black "Gbiorczyk, Mikolaj"]
[Result "0-1"]
[ECO "A48"]
[WhiteElo "2102"]
[BlackElo "2137"]
[Annotator "NA"]
[PlyCount "54"]
[EventDate "2023.12.24"]
[EventType "swiss"]
[EventCountry "POL"]
[SourceTitle "playchess.com"]
[Source "ChessBase"]
[SourceQuality "1"]
[TimeControl "40/5400+30:1800+30"]

1. d4 {[%emt 0:00:23]} Nf6 {[%emt 0:00:04]} 2. Nf3 {[%emt 0:00:18]} g6 {[%emt 0:00:05]} 3. e3 {[%emt 0:00:05]} Bg7 {[%emt 0:00:05]} 4. Be2 {[%emt 0:00:05]} O-O {[%emt 0:00:05]} 5. O-O {[%emt 0:00:05]} d6 {[%emt 0:00:14]} 6. Nc3 {[%emt 0:00:13]} c5 {[%emt 0:00:18]} 7. h3 {[%emt 0:01:51]} a6 {[%emt 0:04:04]} 8. a4 {[%emt 0:00:51]} Nc6 {[%emt 0:00:55]} 9. d5 {[%emt 0:01:41]} Nb4 {[%emt 0:00:25]} 10. e4 {[%emt 0:01:31]} e6 {[%emt 0:03:33]} 11. Bg5 {[%emt 0:02:24]} h6 {[%emt 0:03:49]} 12. Be3 {[%emt 0:03:18]} exd5 {[%emt 0:01:14]} 13. exd5 {[%emt 0:06:32]} Bf5 {[%emt 0:00:26]} 14. Rc1 {[%emt 0:01:23]} Ne4 {[%emt 0:03:14]} 15. g4 {[%emt 0:07:36]} Bxc3 {[%emt 0:02:50]} 16. Bxh6 {[%emt 0:06:03]} Re8 {[%emt 0:03:13]} 17. gxf5 {[%emt 0:02:39]} Bxb2 {[%emt 0:00:55]} 18. Bc4 {[%emt 0:14:09]} Qf6 {[%emt 0:05:38]} 19. Rb1 {[%emt 0:05:44]} Nc3 {[%emt 0:02:41]} 20. Qd2 {[%emt 0:01:08]} Nxb1 {[%emt 0:00:30]} 21. Rxb1 {[%emt 0:00:12]} Bc3 {[%emt 0:02:02]} 22. Qf4 {[%emt 0:01:21]} Qxf5 {[%emt 0:00:56]} 23. Qxf5 {[%emt 0:00:14]} gxf5 {[%emt 0:00:04]} 24. Rb3 {[%emt 0:00:09]} Bg7 {[%emt 0:02:24]} 25. Bg5 {[%emt 0:12:20]} Rab8 {[%emt 0:15:18]} 26. Nh4 {[%emt 0:01:49]} Re4 {[%emt 0:02:51]} 27. Bf1 {[%emt 0:12:25]} f6 {[%emt 0:01:20]} 0-1

[Event "Cracovia Festival-A 2023"]
[Site "Krakow"]
[Date "2024.01.03"]
[Round "8.1"]
[White "Gumularz, Szymon"]
[Black "Pacan-Milej, Kosma"]
[Result "1/2-1/2"]
[ECO "B12"]
[WhiteElo "2576"]
[BlackElo "2425"]
[Annotator "TA"]
[PlyCount "119"]
[EventDate "2023.12.24"]
[EventType "swiss"]
[EventCountry "POL"]
[SourceTitle "playchess.com"]
[Source "ChessBase"]
[SourceQuality "1"]
[TimeControl "40/5400+30:1800+30"]

{[%evp 11,119,16,27,14,46,12,49,45,64,33,53,33,75,71,81,68,74,54,83,60,61,57,77,79,74,56,42,10,17,17,8,0,0,-24,0,-3,22,32,30,0,62,63,82,82,86,83,127,113,136,72,64,70,71,79,104,77,85,25,59,8,209,188,175,58,87,22,63,10,36,31,38,46,31,31,31,31,112,126,126,81,225,197,278,278,308,308,307,304,298,0,0,0,0,0,0,0,0,0,0,0,0,0,0,0,0,0,0,0,0,0]} 1. e4 {[%emt 0:04:25]} c6 {[%emt 0:00:10]} 2. d4 {[%emt 0:00:12]} d5 {[%emt 0:00:03]} 3. e5 {[%emt 0:00:07]} Bf5 {[%emt 0:00:09]} 4. Nf3 {[%emt 0:00:16]} e6 {[%emt 0:00:23]} 5. Be2 {[%emt 0:00:19]} Nd7 {[%emt 0:00:38]} 6. O-O {[%emt 0:00:11]} h6 {[%emt 0:00:35]} 7. a4 {[%emt 0:00:16] B12: Caro-Kann: Advance Variation.} Ne7 {[%emt 0:02:27]} 8. c3 {[%emt 0:00:07]} Qc7 {[%emt 0:00:57] 8...a5 gains popularity.} 9. Na3 {[%emt 0:01:56] White is slightly better.} Bh7 {[%emt 0:07:09] [#]} 10. Re1 $146 {[%emt 0:01:01][%cal Oa4a5]} ({Predecessor:} 10. b4 a5 11. Bd2 Nc8 12. Qb3 Ncb6 13. Rfc1 Be7 14. bxa5 Rxa5 15. c4 dxc4 16. Nxc4 Nxc4 17. Bxc4 {½-½ Bocharov,D (2506)-Nechaeva,M (2379) Eurasia Cup op 2019 (3)}) 10... a6 {[%emt 0:12:20]} 11. b4 {[%emt 0:04:41]} Ng6 {[%emt 0:02:18]} 12. a5 {[%emt 0:00:35]} Be7 {[%emt 0:00:27]} 13. Bd3 {[%emt 0:00:11]} Ngf8 {[%emt 0:11:15]} 14. Bf1 {[%emt 0:01:09]} Ng6 {[%emt 0:00:52]} 15. Ra2 {[%emt 0:00:30]} O-O {[%emt 0:00:27]} 16. Bd3 {[%emt 0:01:56]} Rfe8 {[%emt 0:12:00]} 17. Nc2 {[%emt 0:01:50] White is more active.} f6 {[%emt 0:02:49]} 18. Qe2 {[%emt 0:02:03]} (18. Na1 {seems wilder.} fxe5 19. Bxg6 Bxg6 20. Nxe5 Be4 21. f3) 18... fxe5 {[%emt 0:06:33]} 19. Nxe5 {[%emt 0:00:31]} (19. Bxg6 {is interesting.} Bxg6 20. Nxe5 Nxe5 21. Bf4) 19... Ngxe5 {[%emt 0:03:32]} 20. Bxh7+ {[%emt 0:00:07]} Kxh7 {[%emt 0:00:02]} 21. dxe5 {[%emt 0:00:10]} c5 {[%emt 0:00:35]} 22. bxc5 {[%emt 0:07:51][%cal Oc5c6]} Bxc5 {[%emt 0:00:19]} 23. Nd4 {[%emt 0:06:08]} Bxd4 {[%emt 0:02:23]} 24. cxd4 {[%emt 0:00:22]} Rac8 {[%emt 0:00:34]} 25. h4 {[%emt 0:03:42]} Qc4 {[%emt 0:00:57]} (25... Nb8 $11) 26. Qb2 {[%emt 0:00:10]} Nb8 {[%emt 0:08:11][%cal Bd7b8,Bb8c6,Bc6d4,Bd4f5][%mdl 32]} 27. Qb1+ {[%emt 0:10:42]} Kh8 {[%emt 0:00:20]} 28. Rb2 {[%emt 0:00:44]} Nc6 {[%emt 0:08:07] [#]} (28... Qxd4 $2 29. Rxb7 (29. Be3 Qxh4 30. Rxb7 Qh5 $11) 29... Qxh4 30. Qg6 $16) 29. Bxh6 $1 {[%emt 0:09:23][%mdl 512]} Nxd4 {[%emt 0:10:34]} (29... Nxa5 30. Qg6) 30. Rb4 {[%emt 0:13:22]} (30. Qg6 $142 {[%csl Gh6][%cal Rg6g7]} Qc7 31. Rb4) 30... Qc3 $16 {[%emt 0:01:27] [#]} (30... Ne2+ $2 31. Kh2 Qc2 32. Bxg7+ Kxg7 33. Rxb7+ Kh6 34. Rxe2 Qxb1 35. Rxb1 $18) 31. Rxb7 $1 {[%emt 0:00:35]} Nf5 {[%emt 0:03:03]} 32. Bg5 {[%emt 0:00:20]} Rc4 {[%emt 0:00:39]} 33. Qd1 {[%emt 0:12:52] Prevents Rg4.} Kg8 {[%emt 0:00:12]} 34. h5 {[%emt 0:00:24]} (34. Qa1 $16) 34... Rd4 {[%emt 0:03:22]} 35. Qc1 {[%emt 0:00:19]} (35. Qa1 $14 Qc6 36. Rb6) 35... Rc8 $2 {[%emt 0:00:33]} (35... Qxa5 $11 {and Black stays safe.} 36. h6 Rg4) 36. Qxc3 $18 {[%emt 0:05:38]} Rxc3 {[%emt 0:00:01]} 37. f3 {[%emt 0:07:45] Wards off Rg4} (37. Rb6 $18) 37... Rc2 $14 {[%emt 0:00:07]} 38. Reb1 {[%emt 0:02:30]} (38. Ra1 $16) 38... Ra4 $1 $11 {[%emt 0:00:21] ...Raa2 would be deadly.} 39. Rb8+ {[%emt 0:00:20]} ({White should try} 39. R7b2 $14 Rxb2 40. Rxb2) 39... Kh7 {[%emt 0:00:05][%cal Oa4a2]} 40. R1b2 $36 {[%emt 0:00:00][%mdl 2048] White has some pressure.} Ra1+ {[%emt 0:00:00]} 41. Kh2 $1 {[%emt 0:02:35]} Rxb2 {[%emt 0:03:38]} 42. Rxb2 {[%emt 0:00:05] Threatens to win with Rb6.} Rxa5 $14 {[%emt 0:02:17][%mdl 4096] Endgame KRB-KRN} 43. Rb6 {[%emt 0:01:24]} d4 {[%emt 0:01:08]} ({Black should play} 43... Nd4 $14) 44. Rxe6 $16 {[%emt 0:01:30] g4 is the strong threat.} d3 {[%emt 0:00:06]} 45. Re8 {[%emt 0:06:57]} Rd5 {[%emt 0:00:27]} (45... Nd4 $16) 46. Bd2 $18 {[%emt 0:02:03]} Nd4 {[%emt 0:04:20]} (46... Rb5 $142) 47. f4 $1 {[%emt 0:04:57]} Nb3 {[%emt 0:11:12] [#]} 48. e6 $1 {[%emt 0:00:42][%cal Oe6e7] And now e7! would win.} Rxh5+ {[%emt 0:01:52] [#]} (48... Nxd2 $2 49. e7 Rxh5+ 50. Kg1) 49. Kg1 $1 {[%emt 0:00:11][%cal Oe6e7]} Rh6 {[%emt 0:01:31] [#]} (49... Nxd2 $2 50. Rh8+ Kxh8 51. e7) 50. f5 $2 {[%emt 0:04:34]} Nxd2 $11 {[%emt 0:01:40] KRN-KR. The position is equal.} 51. e7 {[%emt 0:00:06] White wants to mate with Rd8.} Nc4 {[%emt 0:01:29] Hoping for ...Nd6.} 52. f6 {[%emt 0:13:56] Black must now prevent Rd8.} Nd6 {[%emt 0:02:44]} (52... Rxf6 $2 53. Rh8+ Kxh8 54. e8=Q+ (54. e8=B {gets mated.} d2 55. Ba4 Nb2 56. Bc2 d1=Q+ 57. Bxd1 Nxd1 58. Kh1 a5 59. Kh2 a4 60. Kh3 a3 61. g4 a2 62. Kh4 a1=Q 63. g5 Qd4+ 64. Kg3 Qf4+ 65. Kh3 Qxg5 66. Kh2 Rh6#) 54... Kh7 55. Qe4+ Rg6 56. Qxc4 $18) (52... gxf6 53. Rd8 Ne5 54. e8=Q (54. e8=B $2 {is the wrong capture.} Rh4 $19) (54. e8=B $2 Rh4 $19)) 53. Rd8 {[%emt 0:00:15]} Rxf6 {[%emt 0:00:10] ( -> ...d2)} 54. Rxd6 $1 {[%emt 0:00:02][%mdl 64] Remove Defender} Rxd6 {[%emt 0:00:12]} 55. e8=Q {[%emt 0:00:04] Inhibits Re6. KQ-KR} (55. e8=B {is a self mate.} d2 56. Bh5 d1=Q+ 57. Bxd1 Rxd1+ 58. Kf2 a5 59. Ke2 Rd6 60. Ke3 a4 61. g4 a3 62. Kf4 a2 63. Ke5 Rd1 64. g5 a1=Q+ 65. Kf4 Rd4+ 66. Kf5 Qa5+ 67. Ke6 Qe1+ 68. Kf7 Rf4#) 55... d2 {[%emt 0:01:11]} 56. Qh5+ {[%emt 0:00:07]} Kg8 {[%emt 0:00:06]} 57. Qe8+ {[%emt 0:00:05]} Kh7 {[%emt 0:00:04]} 58. Qh5+ {[%emt 0:00:02]} Kg8 {[%emt 0:00:04]} 59. Qd1 {[%emt 0:02:28]} a5 {[%emt 0:01:18]} 60. Qb3+ {[%emt 0:01:34] Black escapes into a draw.   Weighted Error Value: White=0.22 (precise) /Black=0.23 (precise)} 1/2-1/2

[Event "Cracovia Festival-A 2023"]
[Site "Krakow"]
[Date "2024.01.03"]
[Round "8.2"]
[White "Podolskyi, Mykhailo"]
[Black "Keinanen, Toivo"]
[Result "0-1"]
[ECO "A40"]
[WhiteElo "2177"]
[BlackElo "2522"]
[Annotator "TA"]
[PlyCount "104"]
[EventDate "2023.12.24"]
[EventType "swiss"]
[EventCountry "POL"]
[SourceTitle "playchess.com"]
[Source "ChessBase"]
[SourceQuality "1"]
[TimeControl "40/5400+30:1800+30"]

{[%evp 21,104,2,13,8,12,0,3,-5,0,0,0,-6,0,0,26,28,43,34,40,5,13,5,14,9,11,16,7,10,70,0,0,0,0,0,-10,-27,-26,-24,0,-21,-30,-35,0,-30,24,-175,-187,-172,-80,-194,-207,-204,-178,-301,-305,-310,-258,-222,-214,-217,-205,-329,-240,-439,-440,-419,-418,-530,-516,-619,-604,-595,-591,-591,-569,-962,-956,-6087,-5777,-5181,-1745,-5106,-4727,-29988,-29989]} 1. d4 {[%emt 0:04:34]} e6 {[%emt 0:00:05]} 2. c4 {[%emt 0:00:27]} b6 {[%emt 0:00:02]} 3. Nf3 {[%emt 0:01:43]} Bb7 {[%emt 0:00:09]} 4. a3 {[%emt 0:01:02]} f5 {[%emt 0:00:07]} 5. Nc3 {[%emt 0:04:19]} Nf6 {[%emt 0:00:14]} 6. g3 {[%emt 0:08:41]} Be7 {[%emt 0:00:57]} 7. Bg2 {[%emt 0:00:32]} Ne4 {[%emt 0:03:50]} 8. Qc2 {[%emt 0:03:21]} Nxc3 {[%emt 0:01:10]} 9. Qxc3 {[%emt 0:00:37]} O-O {[%emt 0:00:47]} 10. O-O {[%emt 0:10:40]} Bf6 {[%emt 0:01:13]} 11. Rd1 {[%emt 0:16:31]} Be4 {[%emt 0:05:22]} 12. b4 {[%emt 0:09:03] A40: Unusual replies to 1 d4.} d6 {[%emt 0:13:45]} 13. Bb2 {[%emt 0:03:52]} Qe7 {[%emt 0:02:10]} 14. Qb3 {[%emt 0:02:33] The position is equal.} Nd7 {[%emt 0:03:41] [#]} 15. Rac1 $146 {[%emt 0:03:03]} ({Predecessor:} 15. Ne1 Kh8 16. Rac1 a5 17. b5 a4 18. Qb4 Bg5 19. e3 Bf6 20. Bc3 Qf7 21. Qb2 {0-1 Chiong Zacarias,R (2373)-Rychagov,A (2551) Internet Section 18-B blitz 2003 (5)}) 15... a5 {[%emt 0:04:29]} 16. Ne1 {[%emt 0:09:13][%cal Bf3e1,Be1g2,Bg2f4][%mdl 32]} Bxg2 {[%emt 0:04:04]} 17. Nxg2 {[%emt 0:00:45]} Kh8 {[%emt 0:05:43]} 18. Nf4 {[%emt 0:04:08][%cal Oc4c5]} Rfe8 {[%emt 0:09:12]} 19. e3 {[%emt 0:02:14][%cal Be2e3,Be3e4,Be4e5][%mdl 32]} Kg8 {[%emt 0:01:50]} 20. b5 {[%emt 0:05:17]} Qf7 {[%emt 0:05:37]} 21. Qc2 {[%emt 0:02:58]} g5 {[%emt 0:01:54]} 22. Ng2 {[%emt 0:00:55]} Bg7 {[%emt 0:01:50]} 23. f4 {[%emt 0:02:26]} h6 {[%emt 0:02:45]} 24. e4 {[%emt 0:01:08]} Qg6 {[%emt 0:03:19]} ({Better is} 24... Nf6 $11) 25. Re1 {[%emt 0:01:00]} (25. e5 $14) 25... Nf6 $11 {[%emt 0:02:11][%cal Rf6e4]} 26. e5 {[%emt 0:01:01]} Ne4 {[%emt 0:02:51]} 27. Rcd1 {[%emt 0:00:07]} Rad8 {[%emt 0:02:12]} 28. Kh1 {[%emt 0:01:09]} Qh5 {[%emt 0:02:53]} 29. Kg1 $1 {[%emt 0:00:05]} Qg6 {[%emt 0:02:05]} 30. Rd3 {[%emt 0:00:31]} Rd7 {[%emt 0:01:50]} 31. Rdd1 {[%emt 0:01:22]} Red8 {[%emt 0:00:32]} 32. Rf1 {[%emt 0:00:18]} Qh5 {[%emt 0:02:45]} (32... Kh7 $142) 33. Rde1 $2 {[%emt 0:00:49]} (33. d5 $1 $11 {and White has nothing to worry.} dxe5 34. fxe5) 33... dxe5 $1 $19 {[%emt 0:04:24]} 34. fxe5 {[%emt 0:00:01][%cal Od4d5] [#]} Bxe5 {[%emt 0:00:27]} 35. Rxe4 {[%emt 0:00:58]} (35. d5 $17 {was the only defense.} Bd6 36. Ne3 (36. Rxe4 fxe4 37. Qxe4 Re7 $17)) 35... fxe4 {[%emt 0:00:05]} 36. Qxe4 {[%emt 0:00:32] [#]} Bg7 {[%emt 0:00:59]} (36... Bxd4+ 37. Bxd4 Rxd4 38. Qxe6+ Kh8 39. g4 $11) 37. Qxe6+ {[%emt 0:00:11]} (37. Ne3 {is a better defense.}) 37... Kh8 {[%emt 0:02:51]} 38. Ne3 {[%emt 0:00:29]} Qe8 {[%emt 0:04:35]} ({Don't do} 38... Bxd4 39. Bxd4+ Rxd4 40. Nd5 R4xd5 41. cxd5 $18 (41. Qf6+ Kg8 $14)) 39. Qxe8+ {[%emt 0:00:45]} Rxe8 {[%emt 0:00:01]} 40. Nf5 {[%emt 0:00:00]} Rf7 {[%emt 0:00:00] Threatens to win with ...Re2.} 41. g4 {[%emt 0:04:45]} (41. Rf2 $142) 41... h5 {[%emt 0:09:19]} 42. gxh5 $2 {[%emt 0:11:45]} (42. Nxg7 Rxf1+ 43. Kxf1 Kxg7 44. gxh5) 42... Ref8 {[%emt 0:01:59]} 43. h6 {[%emt 0:02:16]} Bxh6 {[%emt 0:00:59]} (43... Rxf5 $2 {loses.} 44. Rxf5 Rxf5 45. hxg7+ Kxg7 46. Kg2 $19) 44. d5+ {[%emt 0:01:59]} Kh7 {[%emt 0:00:26]} 45. Ng3 {[%emt 0:00:12]} Rxf1+ {[%emt 0:01:58]} 46. Nxf1 {[%emt 0:00:02]} Bg7 {[%emt 0:01:59]} 47. Bxg7 {[%emt 0:00:06]} Kxg7 {[%emt 0:00:01] KR-KN} 48. Ne3 {[%emt 0:00:02]} Rf3 {[%emt 0:04:05]} 49. d6 {[%emt 0:00:53]} cxd6 {[%emt 0:00:24]} (49... Rxe3 $2 50. dxc7 Re8 51. c5 bxc5 52. b6 $18) 50. Nd5 {[%emt 0:00:04]} Rxa3 {[%emt 0:00:42]} (50... a4 $142 51. Nxb6 Rxa3) 51. Nxb6 {[%emt 0:00:02]} a4 {[%emt 0:00:57] ( -> ...Ra1+)} 52. Nd5 {[%emt 0:01:30]} Rb3 {[%emt 0:01:27] Weighted Error Value: White=0.83/Black=0.24 (precise)} 0-1